Workbook

Sheet Sheet1
A1: Template for perpendicular drop area measurements of two overlapping peaks, using 2nd and 4th derivative sharpening.
A2: (1) Paste raw data into column A and B, starting at row 10; (2) Adjust K2 and K4 to sharpen peaks (K4-5); (3) Enter x-values for the start, valley, and end for the target peaks (C4-7). (4) Adjust graph scale.
B3: Peak settings | D3: Row # | F3: Measured areas | G3: First peak | H3: Second peak | I3: Area Ratio | J3: Type estimated values of K2 (2nd derivative) and K4 (4th derivative) weighting factors and then click the buttons to fine-tune.
B4: Start x | C4: 500 | D4: =MATCH(C4,A10:A15007)+8 -> 59 | F4: Raw | G4: =(SUM(INDIRECT("c"&D4):INDIRECT("c"&D5))*(A11-A10)) -> 331.8874365 | H4: =(SUM(INDIRECT("c"&D5):INDIRECT("c"&D6))*(A11-A10)) -> 170.3005237 | I4: =G4/H4 -> 1.948833916 | J4: K2= | K4: 4545.977384 | M4: The smooth function is defined by the 17 red coefficients in row 5, columns K through AA.
B5: Valley x | C5: 1270 | D5: =MATCH(C5,A10:A15007)+8 -> 136 | F5: Sharpened | G5: =(SUM(INDIRECT("k"&D4):INDIRECT("k"&D5))*(A12-A11)) -> 333.4084469 | H5: =(SUM(INDIRECT("k"&D5):INDIRECT("k"&D6))*(A12-A11)) -> 166.3762601 | I5: =G5/H5 -> 2.003942429 | J5: K4= | K5: 57463780.29 | M5: -8 | N5: -7 | O5: -6 | P5: -5 | Q5: -4 | R5: -3 | S5: -2 | T5: -1 | U5: 0 | V5: 1 | W5: 2 | X5: 3 | Y5: 4 | Z5: 5 | AA5: 6 | AB5: 7 | AC5: 8
B6: End x | C6: 2000 | D6: =MATCH(C6,A10:A15007)+8 -> 209 | L6: Smooth coefficients---> | M6: 0 | N6: 0 | O6: 0 | P6: 0 | Q6: 0 | R6: 0 | S6: 0 | T6: 1 | U6: 2 | V6: 1 | W6: 0 | X6: 0 | Y6: 0 | Z6: 0 | AA6: 0 | AB6: 0 | AC6: 0
B7: Baseline | C7: 0
A8: Raw data
A9: X | B9: Y | C9: Baseline corrected | D9: 1st derivative | F9: Smoothed 1st deriv. | G9: 2nd derivative | H9: Smoothed 2nd deriv. | I9: 4th der | J9: Sm 4th | K9: Sharpened Signal
A10: 0 | B10: 5.118281756e-13 | C10: =B10-$C$7 -> 5.118281756e-13 | D10: 0 | F10: 0 | G10: 0 | H10: 0 | I10: =(H9-2*H10+H11)/(A11-A9)^2 ->  | K10: =C10-($K$4*H10)+($K$5*J10) -> 
A11: 10 | B11: 8.989025621e-13 | C11: =B11-$C$7 -> 8.989025621e-13 | D11: =(B12-B10)/(A12-A10) -> 5.289832862e-14 | F11: 0 | G11: =(F12-F10)/(A12-A10) -> 0 | H11: 0 | I11: =(H10-2*H11+H12)/(A12-A10)^2 -> 0 | K11: =C11-($K$4*H11)+($K$5*J11) -> 8.989025621e-13
A12: 20 | B12: 1.569794748e-12 | C12: 1.569794748e-12 | D12: =(B13-B11)/(A13-A11) -> 9.13514506e-14 | F12: 0 | G12: 0 | H12: 0 | I12: =(H11-2*H12+H13)/(A13-A11)^2 -> 0 | K12: 1.569794748e-12
A13: 30 | B13: 2.725931574e-12 | C13: 2.725931574e-12 | D13: 1.56851947e-13 | F13: 0 | G13: 0 | H13: 0 | I13: =(H12-2*H13+H14)/(A14-A12)^2 -> 0 | K13: 2.725931574e-12
A14: 40 | B14: 4.706833688e-12 | C14: 4.706833688e-12 | D14: 2.677715399e-13 | F14: 0 | G14: 0 | H14: 0 | I14: 0 | K14: 4.706833688e-12
A15: 50 | B15: 8.081362371e-12 | C15: 8.081362371e-12 | D15: 4.545042963e-13 | F15: 0 | G15: 0 | H15: 0 | I15: 0 | K15: 8.081362371e-12
A16: 60 | B16: 1.379691961e-11 | C16: 1.379691961e-11 | D16: 7.670252343e-13 | F16: 0 | G16: 0 | H16: 0 | I16: 0 | K16: 1.379691961e-11
A17: 70 | B17: 2.342186706e-11 | C17: 2.342186706e-11 | D17: 1.286999474e-12 | F17: 0 | G17: 0 | H17: 0 | I17: 0 | K17: 2.342186706e-11
A18: 80 | B18: 3.953690909e-11 | C18: 3.953690909e-11 | D18: 2.147054592e-12 | F18: 0 | G18: 0 | H18: 0 | I18: 0 | K18: 3.953690909e-11
A19: 90 | B19: 6.636295889e-11 | C19: 6.636295889e-11 | D19: 3.561252053e-12 | F19: =(D11*$M$6+D12*$N$6+D13*$O$6+D14*$P$6+D15*$Q$6+D16*$R$6+D17*$S$6+D18*$T$6+D19*$U$6+D20*$V$6+D21*$W$6+D22*$X$6+D23*$Y$6+D24*$Z$6+D25*$AA$6+D26*$AB$6+D27*$AC$6)/SUM($M$6:$AC$6) -> 3.785626543e-12 | G19: 0 | H19: 0 | I19: 0 | K19: 6.636295889e-11
A20: 100 | B20: 1.107619501e-10 | C20: 1.107619501e-10 | D20: 5.872947477e-12 | F20: 6.234152857e-12 | G20: =(F21-F19)/(A21-A19) -> 3.210899711e-13 | H20: 0 | I20: 0 | K20: 1.107619501e-10
A21: 110 | B21: 1.838219084e-10 | C21: 1.838219084e-10 | D21: 9.62946442e-12 | F21: 1.020742596e-11 | G21: 5.191429815e-13 | H21: 0 | I21: 0 | K21: 1.838219084e-10
A22: 120 | B22: 3.033512385e-10 | C22: 3.033512385e-10 | D22: 1.569782754e-11 | F22: 1.661701249e-11 | G22: 8.344244711e-13 | H22: 0 | I22: 0 | K22: 3.033512385e-10
A23: 130 | B23: 4.977784593e-10 | C23: 4.977784593e-10 | D23: 2.544293044e-11 | F23: 2.689591539e-11 | G23: 1.333288172e-12 | H23: 0 | I23: 5.570763949e-15 | K23: 4.977784593e-10
A24: 140 | B24: 8.122098474e-10 | C24: 8.122098474e-10 | D24: 4.099997312e-11 | F24: 4.328277593e-11 | G24: 2.117849092e-12 | H24: =(G16*$M$6+G17*$N$6+G18*$O$6+G19*$P$6+G20*$Q$6+G21*$R$6+G22*$S$6+G23*$T$6+G24*$U$6+G25*$V$6+G26*$W$6+G27*$X$6+G28*$Y$6+G29*$Z$6+G30*$AA$6+G31*$AB$6+G32*$AC$6)/SUM($M$6:$AC$6) -> 2.22830558e-12 | I24: -2.356574808e-15 | J24: =(I16*$M$6+I17*$N$6+I18*$O$6+I19*$P$6+I20*$Q$6+I21*$R$6+I22*$S$6+I23*$T$6+I24*$U$6+I25*$V$6+I26*$W$6+I27*$X$6+I28*$Y$6+I29*$Z$6+I30*$AA$6+I31*$AB$6+I32*$AC$6)/SUM($M$6:$AC$6) -> 6.576284832e-16 | K24: 2.847220176e-08
A25: 150 | B25: 1.317777922e-09 | C25: 1.317777922e-09 | D25: 6.568822703e-11 | F25: 6.925289722e-11 | G25: 3.344235963e-12 | H25: =(G17*$M$6+G18*$N$6+G19*$O$6+G20*$P$6+G21*$Q$6+G22*$R$6+G23*$S$6+G24*$T$6+G25*$U$6+G26*$V$6+G27*$W$6+G28*$X$6+G29*$Y$6+G30*$Z$6+G31*$AA$6+G32*$AB$6+G33*$AC$6)/SUM($M$6:$AC$6) -> 3.513981236e-12 | I25: 1.772899599e-15 | J25: =(I17*$M$6+I18*$N$6+I19*$O$6+I20*$P$6+I21*$Q$6+I22*$R$6+I23*$S$6+I24*$T$6+I25*$U$6+I26*$V$6+I27*$W$6+I28*$X$6+I29*$Y$6+I30*$Z$6+I31*$AA$6+I32*$AB$6+I33*$AC$6)/SUM($M$6:$AC$6) -> 9.73244744e-16 | K25: 4.126962083e-08
A26: 160 | B26: 2.125974388e-09 | C26: 2.125974388e-09 | D26: 1.046351617e-10 | F26: 1.101674952e-10 | G26: 5.249603928e-12 | H26: =(G18*$M$6+G19*$N$6+G20*$O$6+G21*$P$6+G22*$Q$6+G23*$R$6+G24*$S$6+G25*$T$6+G26*$U$6+G27*$V$6+G28*$W$6+G29*$X$6+G30*$Y$6+G31*$Z$6+G32*$AA$6+G33*$AB$6+G34*$AC$6)/SUM($M$6:$AC$6) -> 5.508816732e-12 | I26: 2.703754585e-15 | J26: 2.819431443e-15 | K26: 1.390982071e-07
A27: 170 | B27: 3.410481156e-09 | C27: 3.410481156e-09 | D27: 1.657114303e-10 | F27: 1.742449758e-10 | G27: 8.191823112e-12 | H27: =(G19*$M$6+G20*$N$6+G21*$O$6+G22*$P$6+G23*$Q$6+G24*$R$6+G25*$S$6+G26*$T$6+G27*$U$6+G28*$V$6+G29*$W$6+G30*$X$6+G31*$Y$6+G32*$Z$6+G33*$AA$6+G34*$AB$6+G35*$AC$6)/SUM($M$6:$AC$6) -> 8.585154063e-12 | I27: 4.097317e-15 | J27: 4.267047426e-15 | K27: 2.095832408e-07
A28: 180 | B28: 5.440202994e-09 | C28: 5.440202994e-09 | D28: 2.609218808e-10 | F28: 2.740039574e-10 | G28: 1.27073661e-11 | H28: =(G20*$M$6+G21*$N$6+G22*$O$6+G23*$P$6+G24*$Q$6+G25*$R$6+G26*$S$6+G27*$T$6+G28*$U$6+G29*$V$6+G30*$W$6+G31*$X$6+G32*$Y$6+G33*$Z$6+G34*$AA$6+G35*$AB$6+G36*$AC$6)/SUM($M$6:$AC$6) -> 1.330041819e-11 | I28: 6.169801119e-15 | J28: 6.417101737e-15 | K28: 3.137277271e-07
A29: 190 | B29: 8.628918772e-09 | C29: 8.628918772e-09 | D29: 4.084606377e-10 | F29: 4.283922978e-10 | G29: 1.959511746e-11 | H29: =(G21*$M$6+G22*$N$6+G23*$O$6+G24*$P$6+G25*$Q$6+G26*$R$6+G27*$S$6+G28*$T$6+G29*$U$6+G30*$V$6+G31*$W$6+G32*$X$6+G33*$Y$6+G34*$Z$6+G35*$AA$6+G36*$AB$6+G37*$AC$6)/SUM($M$6:$AC$6) -> 2.048360277e-11 | I29: 9.231487711e-15 | J29: 9.589269484e-15 | K29: 4.665465987e-07
A30: 200 | B30: 1.360941575e-08 | C30: 1.360941575e-08 | D30: 6.357260348e-10 | F30: 6.659063067e-10 | G30: 3.003681006e-11 | H30: 3.135938243e-11 | I30: 1.37243014e-14 | J30: 1.423824118e-14 | K30: 6.892335351e-07
A31: 210 | B31: 2.134343947e-08 | C31: 2.134343947e-08 | D31: 9.837125192e-10 | F31: 1.029128499e-09 | G31: 4.576879215e-11 | H31: 4.772488265e-11 | I31: 2.02728742e-14 | J31: 2.100583185e-14 | K31: 1.011461708e-06
A32: 220 | B32: 3.328366613e-08 | C32: 3.328366613e-08 | D32: 1.513362923e-09 | F32: 1.58128215e-09 | G32: 6.932513626e-11 | H32: 7.219953256e-11 | I32: 2.975327758e-14 | J32: 3.079101543e-14 | K32: 1.47443437e-06
A33: 230 | B33: 5.161069793e-08 | C33: 5.161069793e-08 | D33: 2.314690234e-09 | F33: 2.415631224e-09 | G33: 1.043790656e-10 | H33: 1.085754935e-10 | I33: 4.338463236e-14 | J33: 4.484313008e-14 | K33: 2.134884735e-06
A34: 240 | B34: 7.95774708e-08 | C34: 7.95774708e-08 | D34: 3.519781507e-09 | F34: 3.668863461e-09 | G34: 1.562187066e-10 | H34: 1.623053074e-10 | I34: 6.2849978e-14 | J34: 6.488466573e-14 | K34: 3.07025939e-06
A35: 250 | B35: 1.220063281e-07 | C35: =B35-$C$7 -> 1.220063281e-07 | D35: =(B36-B34)/(A36-A34) -> 5.321200596e-09 | F35: =(D27*$M$6+D28*$N$6+D29*$O$6+D30*$P$6+D31*$Q$6+D32*$R$6+D33*$S$6+D34*$T$6+D35*$U$6+D36*$V$6+D37*$W$6+D38*$X$6+D39*$Y$6+D40*$Z$6+D41*$AA$6+D42*$AB$6+D43*$AC$6)/SUM($M$6:$AC$6) -> 5.540005356e-09 | G35: =(F36-F34)/(A36-A34) -> 2.324047507e-10 | H35: =(G27*$M$6+G28*$N$6+G29*$O$6+G30*$P$6+G31*$Q$6+G32*$R$6+G33*$S$6+G34*$T$6+G35*$U$6+G36*$V$6+G37*$W$6+G38*$X$6+G39*$Y$6+G40*$Z$6+G41*$AA$6+G42*$AB$6+G43*$AC$6)/SUM($M$6:$AC$6) -> 2.411751125e-10 | I35: 9.045407456e-14 | J35: 9.327132464e-14 | K35: 4.385352628e-06
A36: 260 | B36: 1.860014827e-07 | C36: 1.860014827e-07 | D36: 7.997838725e-09 | F36: 8.316958476e-09 | G36: 3.436722417e-10 | H36: 3.562265474e-10 | I36: 1.293271715e-13 | J36: 1.33198385e-13 | K36: 6.220686385e-06
A37: 270 | B37: 2.819631026e-07 | C37: 2.819631026e-07 | D37: 1.195095586e-08 | F37: 1.241345019e-08 | G37: 5.051569552e-10 | H37: 5.230088508e-10 | I37: 1.836851224e-13 | J37: 1.889637103e-13 | K37: 8.76294583e-06
A38: 280 | B38: 4.250205999e-07 | C38: 4.250205999e-07 | D38: 1.775405032e-08 | F38: 1.842009758e-08 | G38: 7.380492512e-10 | H38: 7.632652033e-10 | I38: 2.591574251e-13 | J38: 2.662989014e-13 | K38: 1.225777581e-05
A39: 290 | B39: 6.37044109e-07 | C39: 6.37044109e-07 | D39: 2.622133382e-08 | F39: 2.717443521e-08 | G39: 1.071805356e-09 | H39: 1.107184526e-09 | I39: 3.63195633e-13 | J39: 3.727808922e-13 | K39: 1.702520758e-05
A40: 300 | B40: 9.494472762e-07 | C40: 9.494472762e-07 | D40: 3.85010229e-08 | F40: 3.985620469e-08 | G40: 1.547078141e-09 | H40: 1.596382101e-09 | I40: 5.055748777e-13 | J40: 5.183365037e-13 | K40: 2.347790531e-05
A41: 310 | B41: 1.407064567e-06 | C41: 1.407064567e-06 | D41: 5.620143915e-08 | F41: 5.811599803e-08 | G41: 2.219566769e-09 | H41: 2.287809628e-09 | I41: 6.990006265e-13 | J41: 7.158517552e-13 | K41: 3.214228172e-05
A42: 320 | B42: 2.073476059e-06 | C42: 2.073476059e-06 | D42: 8.156009092e-08 | F42: 8.424754007e-08 | G42: 3.165026835e-09 | H42: 3.258837406e-09 | I42: 9.598308902e-13 | J42: 9.81895704e-13 | K42: 4.368231393e-05
A43: 330 | B43: 3.038266385e-06 | C43: 3.038266385e-06 | D43: 1.176685393e-07 | F43: 1.214165347e-07 | G43: 4.485729184e-09 | H43: 4.613797539e-09 | I43: 1.308920409e-12 | J43: 1.337564765e-12 | K43: 5.892557492e-05 | L43: Extend the spreadsheet to longer columns of data by inserting rows as needed and the dragging the last row before the insertion for columns C through J.
A44: 340 | B44: 4.426846845e-06 | C44: 4.426846845e-06 | D44: 1.687689694e-07 | F44: 1.739621238e-07 | G44: 6.318704953e-09 | H44: 6.492325836e-09 | I44: 1.772587352e-12 | J44: 1.809447324e-12 | K44: 7.889056393e-05
A45: 350 | B45: 6.413645774e-06 | C45: 6.413645774e-06 | D45: 2.406420169e-07 | F45: 2.477906338e-07 | G45: 8.846164255e-09 | H45: 9.079889074e-09 | I45: 2.383694184e-12 | J45: 2.430699435e-12 | K45: 0.0001048138537
A46: 360 | B46: 9.239687183e-06 | C46: 9.239687183e-06 | D46: 3.411095319e-07 | F46: 3.508854088e-07 | G46: 1.230852283e-08 | H46: 1.262092999e-08 | I46: 3.182822021e-12 | J46: 3.242209929e-12 | K46: 0.0001381748639
A47: 370 | B47: 1.323583641e-05 | C47: 1.323583641e-05 | D47: 4.806805546e-07 | F47: 4.939610905e-07 | G47: 1.702051002e-08 | H47: 1.743509971e-08 | I47: 4.219501489e-12 | J47: 4.293816857e-12 | K47: 0.000180715216
A48: 380 | B48: 1.885329828e-05 | C48: 1.885329828e-05 | D48: 6.733737207e-07 | F48: 6.912956092e-07 | G48: 2.339085595e-08 | H48: 2.393707002e-08 | I48: 5.553442428e-12 | J48: 5.645516508e-12 | K48: 0.0002344486396
A49: 390 | B49: 2.670331083e-05 | C49: 2.670331083e-05 | D49: 9.377544408e-07 | F49: 9.617782095e-07 | G49: 3.194605817e-08 | H49: 3.266041731e-08 | I49: 7.255679687e-12 | J49: 7.368581149e-12 | K49: 0.0003016563206
A50: 400 | B50: 3.760838709e-05 | C50: 3.760838709e-05 | D50: 1.298230236e-06 | F50: 1.330216773e-06 | G50: 4.335869695e-08 | H50: 4.428603647e-08 | I50: 9.409522794e-12 | J50: 9.546472424e-12 | K50: 0.0003848614609
A51: 410 | B51: 5.266791554e-05 | C51: 5.266791554e-05 | D51: 1.786652178e-06 | F51: 1.828952149e-06 | G51: 5.848069381e-08 | H51: 5.967546475e-08 | I51: 1.211116442e-11 | J51: 1.227540475e-11 | K51: 0.0004867757642
A52: 420 | B52: 7.334143066e-05 | C52: 7.334143066e-05 | D52: 2.444274002e-06 | F52: 2.499830649e-06 | G52: 7.838177442e-08 | H52: 7.99093588e-08 | I52: 1.546976738e-11 | J52: 1.566437847e-11 | K52: 0.0006102096958
A53: 430 | B53: 0.0001015533956 | C53: 0.0001015533956 | D53: 3.324122413e-06 | F53: 3.396587637e-06 | G53: 1.043931925e-07 | H53: 1.063311598e-07 | I53: 1.960681471e-11 | J53: 1.983446801e-11 | K53: 0.0007579378598
A54: 440 | B54: 0.0001398238789 | C54: 0.0001398238789 | D54: 4.493831721e-06 | F54: 4.587694499e-06 | G54: 1.381564797e-07 | H54: 1.405956867e-07 | I54: 2.465447523e-11 | J54: 2.49171191e-11 | K54: 0.0009325109248
A55: 450 | B55: 0.00019143003 | C55: 0.00019143003 | D55: 6.038992143e-06 | F55: 6.159717231e-06 | G55: 1.816765948e-07 | H55: 1.847220037e-07 | I55: 3.075271125e-11 | J55: 3.105118491e-11 | K55: 0.001136006446 | M55: Tom O'Haver (toh@umd.edu), Version 3, July 2018
A56: 460 | B56: 0.0002606037218 | C56: 0.0002606037218 | D56: 8.067052917e-06 | F56: 8.221226395e-06 | G56: 2.373783453e-07 | H56: 2.411494051e-07 | I56: 3.80448419e-11 | J56: 3.837841837e-11 | K56: 0.001369712981
A57: 470 | B57: 0.0003527710883 | C57: 0.0003527710883 | D57: 1.07118076e-05 | F57: 1.090728414e-05 | G57: 3.081643351e-07 | H57: 3.127947434e-07 | I57: 4.667127845e-11 | J57: 4.703714365e-11 | K57: 0.001633745348
A58: 480 | B58: 0.0004748398739 | C58: 0.0004748398739 | D58: 1.413846843e-05 | F58: 1.43845131e-05 | G58: 3.97471958e-07 | H58: 4.03108593e-07 | I58: 5.676117581e-11 | J58: 5.71538577e-11 | K58: 0.001926594049
A59: 490 | B59: 0.0006355404568 | C59: 0.0006355404568 | D59: 1.854930793e-05 | F59: 1.88567233e-05 | G59: 5.093261208e-07 | H59: 5.161269129e-07 | I59: 6.842180072e-11 | J59: 6.883257183e-11 | K59: 0.002244618968
A60: 500 | B60: 0.0008458260325 | C60: 0.0008458260325 | D60: 2.418980891e-05 | F60: 2.457103551e-05 | G60: 6.48383452e-07 | H60: 6.565139531e-07 | I60: 8.172551008e-11 | J60: 8.214179675e-11 | K60: 0.002581506611
A61: 510 | B61: 0.001119336635 | C61: 0.001119336635 | D61: 3.135521631e-05 | F61: 3.182439234e-05 | G61: 8.199627878e-07 | H61: 8.295911974e-07 | I61: 9.669436613e-11 | J61: 9.709920841e-11 | K61: 0.002927721393
A62: 520 | B62: 0.001472930359 | C62: 0.001472930359 | D62: 4.039732783e-05 | F62: 4.097029127e-05 | G62: 1.030055762e-06 | H62: 1.041346188e-06 | I62: 1.132825913e-10 | J62: 1.136542085e-10 | K62: 0.003269994608
A63: 530 | B63: 0.001927283192 | C63: 0.001927283192 | D63: 5.173129311e-05 | F63: 5.242550758e-05 | G63: 1.285310441e-06 | H63: 1.298414215e-06 | I63: 1.313572854e-10 | J63: 1.31668812e-10 | K63: 0.003590909218
A64: 540 | B64: 0.002507556221 | C64: 0.002507556221 | D64: 6.584211627e-05 | F64: 6.667650008e-05 | G64: 1.592980218e-06 | H64: 1.608025157e-06 | I64: 1.506780859e-10 | J64: 1.508975497e-10 | K64: 0.003868653871
A65: 550 | B65: 0.003244125517 | C65: 0.003244125517 | D65: 8.329047467e-05 | F65: 8.428511194e-05 | G65: 1.96082975e-06 | H65: 1.977907332e-06 | I65: 1.708767417e-10 | J65: 1.709673606e-10 | K65: 0.004077034364
A66: 560 | B66: 0.004173365714 | C66: 0.004173365714 | D66: 0.0001047173822 | F66: 0.0001058930951 | G66: 2.396989612e-06 | H66: 2.416140205e-06 | I66: 1.91437873e-10 | J66: 1.913587447e-10 | K66: 0.004185843851
A67: 570 | B67: 0.00533847316 | C67: 0.00533847316 | D67: 0.0001308471413 | F67: 0.0001322249042 | G67: 2.909751846e-06 | H67: 2.930948227e-06 | I67: 2.11682491e-10 | J67: 2.113897435e-10 | K67: 0.004161702586
A68: 580 | B68: 0.00679030854 | C68: 0.00679030854 | D68: 0.000162487952 | F68: 0.000164088132 | G68: 3.507299602e-06 | H68: 3.530429245e-06 | I68: 2.307561188e-10 | J68: 2.302045726e-10 | K68: 0.003969482024
A69: 590 | B69: 0.0085882322 | C69: 0.0085882322 | D69: 0.0002005294827 | F69: 0.0002023708962 | G69: 4.197365928e-06 | H69: 4.22221271e-06 | I69: 2.476235618e-10 | J69: 2.467689318e-10 | K69: 0.003574424393
A70: 600 | B70: 0.01080089819 | C70: 0.01080089819 | D70: 0.0002459366675 | F70: 0.0002480354505 | G70: 4.986819383e-06 | H70: 5.013045601e-06 | I70: 2.610724848e-10 | J70: 2.59874116e-10 | K70: 0.002945055377
A71: 610 | B71: 0.01350696555 | C71: 0.01350696555 | D71: 0.0002997389845 | F71: 0.0003021072839 | G71: 5.881177708e-06 | H71: 5.908307485e-06 | I71: 2.697279325e-10 | J71: 2.681520223e-10 | K71: 0.002056962243
A72: 620 | B72: 0.01679567788 | C72: 0.01679567788 | D72: 0.0003630144991 | F72: 0.0003656590047 | G72: 6.884055139e-06 | H72: 6.911460542e-06 | I72: 2.720797392e-10 | J72: 2.701029507e-10 | K72: 0.0008974711854
A73: 630 | B73: 0.02076725553 | C73: 0.02076725553 | D73: 0.0004368680361 | F73: 0.0004397883867 | G73: 7.996554181e-06 | H73: 8.023445495e-06 | I73: 2.665243916e-10 | J73: 2.641377079e-10 | K73: -0.0005287950124
A74: 640 | B74: 0.02553303861 | C74: 0.02553303861 | D74: 0.0005224029753 | F74: 0.0005255900883 | G74: 9.216618479e-06 | H74: 9.242040205e-06 | I74: 2.514223089e-10 | J74: 2.486349245e-10 | K74: -0.002193564465
A75: 650 | B75: 0.03121531504 | C75: 0.03121531504 | D75: 0.0006206863666 | F75: 0.0006241207563 | G75: 1.053836968e-05 | H75: 1.056120384e-05 | I75: 2.251706886e-10 | J75: 2.220136819e-10 | K75: =C75-($K$4*H75)+($K$5*J75) -> -0.004037933308
A76: 660 | B76: 0.03794676594 | C76: 0.03794676594 | D76: 0.0007327073166 | F76: 0.0007363574819 | G76: 1.195145751e-05 | H76: 1.197043575e-05 | I76: 1.862910416e-10 | J76: 1.828205286e-10 | K76: -0.005965005546
A77: 670 | B77: 0.04586946137 | C77: 0.04586946137 | D77: 0.0008593289281 | F77: 0.0008631499065 | G77: 1.344045828e-05 | H77: 1.345418407e-05 | I77: =(H76-2*H77+H78)/(A78-A76)^2 -> 1.335293428e-10 | J77: 1.29828784e-10 | K77: -0.007832502412
A78: 680 | B78: 0.0551333445 | C78: 0.0551333445 | D78: 0.001001234453 | F78: 0.001005166648 | G78: 1.498436221e-05 | H78: 1.499134413e-05 | I78: 6.596540887e-11 | J78: 6.21467303e-11 | K78: -0.009445780828 | M78: Type in (or Copy and Paste) any data you like into column A (X) and B (Y).
A79: 690 | B79: 0.06589415044 | C79: 0.06589415044 | D79: 0.001158868756 | F79: 0.001162837151 | G79: 1.655619383e-05 | H79: 1.655489036e-05 | I79: -1.687323933e-11 | J79: -2.067003349e-11 | K79: -0.01055178499 | M79: Change the smooth width by changing the 17 red coefficients in row 5, columns K through AA.
A80: 700 | B80: 0.07831071961 | C80: 0.07831071961 | D80: 0.001332376638 | F80: 0.001336290524 | G80: 1.812281157e-05 | H80: 1.811168729e-05 | I80: -1.148990641e-10 | J80: -1.185080668e-10 | K80: -0.0108345227 | M80: Extend the spreadsheet to longer columns of data by dragging the last row of columns A through H down as needed.
A81: 710 | B81: 0.0925416832 | C81: 0.0925416832 | D81: 0.001521540065 | F81: 0.001525293382 | G81: 1.96449322e-05 | H81: 1.962252459e-05 | I81: -2.273608994e-10 | J81: -2.305944676e-10 | K81: -0.00991269964
A82: 720 | B82: 0.1087415209 | C82: 0.1087415209 | D82: 0.001725716761 | F82: 0.001729189168 | G82: 2.107742242e-05 | H82: 2.104241754e-05 | I82: -3.527570076e-10 | J82: -3.554120204e-10 | K82: -0.00734015158
A83: 730 | B83: 0.1270560184 | C83: 0.1270560184 | D83: 0.001943783086 | F83: 0.00194684183 | G83: 2.236989313e-05 | H83: 2.232120768e-05 | I83: -4.88773167e-10 | J83: -4.906393377e-10 | K83: -0.002609677978
A84: 740 | B84: 0.1476171826 | C84: 0.1476171826 | D84: 0.002174084388 | F84: 0.002176587031 | G84: 2.346762206e-05 | H84: 2.340448856e-05 | I84: -6.322540091e-10 | J84: -6.331240629e-10 | K84: 0.00483920493
A85: 750 | B85: 0.1705377062 | C85: 0.1705377062 | D85: 0.00241439626 | F85: 0.002416194272 | G85: 2.431281699e-05 | H85: 2.423486783e-05 | I85: -7.792150666e-10 | J85: -7.788964259e-10 | K85: 0.01560821206
A86: 760 | B86: 0.1959051078 | C86: 0.1959051078 | D86: 0.002661900178 | F86: 0.00266284337 | G86: 2.484621528e-05 | H86: 2.475356107e-05 | I86: -9.249015612e-10 | J86: -9.232290122e-10 | K86: 0.03032374992
A87: 770 | B87: 0.2237757097 | C87: 0.2237757097 | D87: 0.002913176865 | F87: 0.002913118577 | G87: 2.500899674e-05 | H87: 2.490229369e-05 | I87: -1.06389786e-09 | J87: -1.060746522e-09 | K87: 0.04961594073
A88: 780 | B88: 0.2541686451 | C88: 0.2541686451 | D88: 0.0031642204 | F88: 0.003163023305 | G88: 2.474496601e-05 | H88: 2.462546717e-05 | I88: -1.190288807e-09 | J88: -1.1855866e-09 | K88: 0.07409354042
A89: 790 | B89: 0.2870601177 | C89: 0.2870601177 | D89: 0.003410475555 | F89: 0.003408017897 | G89: 2.400293992e-05 | H89: 2.387252512e-05 | I89: -1.297870926e-09 | J89: =(I81*$M$6+I82*$N$6+I83*$O$6+I84*$P$6+I85*$Q$6+I86*$R$6+I87*$S$6+I88*$T$6+I89*$U$6+I90*$V$6+I91*$W$6+I92*$X$6+I93*$Y$6+I94*$Z$6+I95*$AA$6+I96*$AB$6+I97*$AC$6)/SUM($M$6:$AC$6) -> -1.291609645e-09 | K89: 0.1043153856
A90: 800 | B90: 0.3223781562 | C90: 0.3223781562 | D90: 0.003646900079 | F90: 0.003643082103 | G90: 2.273925464e-05 | H90: 2.260043471e-05 | I90: -1.380407921e-09 | J90: -1.372652011e-09 | K90: 0.1407593176
A91: 810 | B91: 0.3599981193 | C91: 0.3599981193 | D91: 0.0038680527 | F91: 0.00386280299 | G91: 2.092028961e-05 | H91: 2.077618112e-05 | I91: -1.431921277e-09 | J91: -1.422813432e-09 | K91: 0.1837898314
A92: 820 | B92: 0.3997392102 | C92: 0.3997392102 | D92: 0.004068206481 | F92: 0.004061487896 | G92: 1.852489061e-05 | H92: 1.837915902e-05 | I92: -1.447003251e-09 | J92: -1.436766077e-09 | K92: 0.2336259588
A93: 830 | B93: 0.4413622489 | C93: 0.4413622489 | D93: 0.004241485921 | F93: 0.004233300802 | G93: 1.554656527e-05 | H93: 1.540333563e-05 | I93: -1.421136529e-09 | J93: -1.410069709e-09 | K93: 0.2903110976
A94: 840 | B94: 0.4845689287 | C94: 0.4845689287 | D94: 0.004382024886 | F94: 0.004372419201 | G94: 1.199532137e-05 | H94: 1.185905762e-05 | I94: -1.351002527e-09 | J94: -1.339475154e-09 | K94: 0.353686615
A95: 850 | B95: 0.5290027467 | C95: 0.5290027467 | D95: 0.004484141111 | F95: 0.00447320723 | G95: 7.899022473e-06 | H95: 7.774378598e-06 | I95: -1.234759031e-09 | J95: -1.223197099e-09 | K95: 0.4233710681
A96: 860 | B96: 0.5742517509 | C96: 0.5742517509 | D96: 0.004542521811 | F96: 0.004530399651 | G96: 3.304148081e-06 | H96: 3.195795967e-06 | I96: -1.072267806e-09 | J96: -1.06113718e-09 | K96: 0.4987467809
A97: 870 | B97: 0.6198531829 | C97: 0.6198531829 | D97: 0.00455241387 | F97: 0.004539290191 | G97: -1.72413477e-06 | H97: -1.811693788e-06 | I97: -8.652540767e-10 | J97: -8.550396046e-10 | K97: 0.5789552939
A98: 880 | B98: 0.6653000283 | C98: 0.6653000283 | D98: 0.004509811215 | F98: 0.004495916955 | G98: -7.102653692e-06 | H98: -7.165285173e-06 | I98: -6.17382459e-10 | J98: -6.085642246e-10 | K98: 0.6629028517
A99: 890 | B99: 0.7100494072 | C99: =B99-$C$7 -> 0.7100494072 | D99: =(B100-B98)/(A100-A98) -> 0.004411631522 | F99: =(D91*$M$6+D92*$N$6+D93*$O$6+D94*$P$6+D95*$Q$6+D96*$R$6+D97*$S$6+D98*$T$6+D99*$U$6+D100*$V$6+D101*$W$6+D102*$X$6+D103*$Y$6+D104*$Z$6+D105*$AA$6+D106*$AB$6+D107*$AC$6)/SUM($M$6:$AC$6) -> 0.004397237117 | G99: =(F100-F98)/(A100-A98) -> -1.273169854e-05 | H99: =(G91*$M$6+G92*$N$6+G93*$O$6+G94*$P$6+G95*$Q$6+G96*$R$6+G97*$S$6+G98*$T$6+G99*$U$6+G100*$V$6+G101*$W$6+G102*$X$6+G103*$Y$6+G104*$Z$6+G105*$AA$6+G106*$AB$6+G107*$AC$6)/SUM($M$6:$AC$6) -> -1.276582954e-05 | I99: -3.342379037e-10 | J99: -3.272658994e-10 | K99: 0.7492766438
A100: 900 | B100: 0.7535326587 | C100: 0.7535326587 | D100: 0.004255874212 | F100: 0.004241282984 | G100: -1.84972674e-05 | H100: -1.850006907e-05 | I100: -2.320533116e-11 | J100: -1.847404095e-11 | K100: 0.8365719661
A101: 910 | B101: 0.7951668914 | C101: 0.7951668914 | D101: 0.004041751993 | F101: 0.004027291769 | G101: -2.427404295e-05 | H101: -2.424359073e-05 | I101: 3.067524022e-10 | J101: 3.089279046e-10 | K101: 0.9231298718
A102: 920 | B102: 0.8343676986 | C102: 0.8343676986 | D102: 0.003769788881 | F102: 0.003755802126 | G102: -2.992900964e-05 | H102: -2.986441144e-05 | I102: 6.454121452e-10 | J102: 6.448169745e-10 | K102: 1.007184258
A103: 930 | B103: 0.870562669 | C103: 0.870562669 | D103: 0.003441878748 | F103: 0.003428711577 | G103: -3.532558352e-05 | H103: -3.522706728e-05 | I103: 9.816912056e-10 | J103: 9.782268264e-10 | K103: 1.086916732
A104: 940 | B104: 0.9032052735 | C104: 0.9032052735 | D104: 0.00306129993 | F104: 0.003049290455 | G104: -4.032809244e-05 | H104: -4.019704664e-05 | I104: 1.304112749e-09 | J104: 1.297807261e-09 | K104: 1.16051705
A105: 950 | B105: 0.9317886676 | C105: 0.9317886676 | D105: 0.002632683213 | F105: 0.002622149728 | G105: -4.480641816e-05 | H105: -4.46453809e-05 | I105: 1.601312342e-09 | J105: 1.592323969e-09 | K105: 1.226246514
A106: 960 | B106: 0.9558589378 | C106: 0.9558589378 | D106: 0.002161932556 | F106: 0.002153162092 | G106: -4.864059485e-05 | H106: -4.845319023e-05 | I106: 1.862558443e-09 | J106: 1.851171725e-09 | K106: 1.28250137
A107: 970 | B107: 0.9750273188 | C107: 0.9750273188 | D107: 0.001656100043 | F107: 0.001649337831 | G107: -5.172515305e-05 | H107: -5.151597617e-05 | I107: 2.078257673e-09 | J107: 2.064872345e-09 | K107: 1.327873152
A108: 980 | B108: 0.9889809386 | C108: 0.9889809386 | D108: 0.001123218681 | F108: 0.001118659031 | G108: -5.397300375e-05 | H108: -5.374745905e-05 | I108: 2.240415591e-09 | J108: 2.225528612e-09 | K108: 1.361202959
A109: 990 | B109: 0.9974916924 | C109: 0.9974916924 | D109: 0.0005720987191 | F109: 0.0005698777559 | G109: -5.531867567e-05 | H109: -5.508277569e-05 | I109: 2.343025593e-09 | J109: 2.327207289e-09 | K109: 1.381626873
A110: 1000 | B110: 1.000422913 | C110: 1.000422913 | D110: 1.209490445e-05 | F110: 1.228551775e-05 | G110: -5.57207477e-05 | H110: -5.54808821e-05 | I110: 2.382362379e-09 | J110: 2.366228056e-09 | K110: 1.388610157
A111: 1010 | B111: 0.9977335905 | C111: 0.9977335905 | D111: -0.000547146457 | F111: -0.0005445371981 | G111: -5.516335733e-05 | H111: -5.492604355e-05 | I111: 2.357161875e-09 | J111: 2.341340607e-09 | K111: 1.381968424
A112: 1020 | B112: 0.9894799839 | C112: 0.9894799839 | D112: -0.001095950783 | F112: -0.001090981629 | G112: -5.365671185e-05 | H112: -5.342834026e-05 | I112: 2.268676298e-09 | J112: 2.253778787e-09 | K112: 1.361874659
A113: 1030 | B113: 0.9758145748 | C113: 0.9758145748 | D113: -0.001624878493 | F113: -0.001617671435 | G113: -5.123658e-05 | H113: -5.102316644e-05 | I113: 2.120600675e-09 | J113: 2.107188178e-09 | K113: 1.328851734
A114: 1040 | B114: 0.956982414 | C114: 0.956982414 | D114: -0.002124977972 | F114: -0.002115713229 | G114: -4.796279392e-05 | H114: -4.776975235e-05 | I114: 1.918875062e-09 | J114: 1.907431288e-09 | K114: 1.28375084
A115: 1050 | B115: 0.9333150154 | C115: 0.9333150154 | D115: -0.002588018479 | F115: -0.002576927313 | G115: -4.391684159e-05 | H115: -4.374878824e-05 | I115: 1.671374352e-09 | J115: 1.662282052e-09 | K115: 1.227717028
A116: 1060 | B116: 0.9052220444 | C116: 0.9052220444 | D116: -0.003006694323 | F116: -0.002994050061 | G116: -3.919867589e-05 | H116: -3.905927439e-05 | I116: 1.387504441e-09 | J116: 1.381028066e-09 | K116: 1.162143716
A117: 1070 | B117: 0.8731811289 | C117: 0.8731811289 | D117: -0.003374793117 | F117: -0.003360900831 | G117: -3.392290421e-05 | H117: -3.381475876e-05 | I117: 1.077729032e-09 | J117: 1.074004451e-09 | K117: 1.088618613
A118: 1080 | B118: 0.8377261821 | C118: 0.8377261821 | D118: -0.003687322768 | F118: -0.003672508145 | G118: -2.821455075e-05 | H118: -2.813915152e-05 | I118: 7.530553016e-10 | J118: 7.520870512e-10 | K118: 1.008863894
A119: 1090 | B119: 0.7994346736 | C119: 0.7994346736 | D119: -0.003940593926 | F119: -0.003925191846 | G119: -2.220460038e-05 | H119: -2.216232216e-05 | I119: 4.2450857e-10 | J119: 4.261746356e-10 | K119: 0.9246736945
A120: 1100 | B120: 0.7589143036 | C120: 0.7589143036 | D120: -0.004132256764 | F120: -0.004116600152 | G120: -1.602553714e-05 | H120: -1.601568937e-05 | I120: 1.02626101e-10 | J120: 1.066897294e-10 | K120: 0.8378520604
A121: 1110 | B121: 0.7167895383 | C121: 0.7167895383 | D121: -0.004261293155 | F121: -0.004245702589 | G121: -9.807082841e-06 | H121: -9.828006144e-06 | I121: -2.030018542e-10 | J121: -1.968742596e-10 | K121: 0.7501542927
A122: 1120 | B122: 0.6736884405 | C122: 0.6736884405 | D122: -0.004327967282 | F122: -0.004312741809 | G122: -3.672321759e-06 | H122: -3.721523657e-06 | I122: -4.841194309e-10 | J122: -4.763356337e-10 | K122: 0.6632343567
A123: 1130 | B123: 0.6302301926 | C123: 0.6302301926 | D123: -0.004333739518 | F123: -0.004319149024 | G123: 2.265631732e-06 | H123: 2.191311059e-06 | I123: -7.341018186e-10 | J123: -7.251178549e-10 | K123: 0.578600529
A124: 1140 | B124: 0.5870136501 | C124: 0.5870136501 | D124: -0.004281149779 | F124: -0.004267429175 | G124: 7.90630253e-06 | H124: 7.810505047e-06 | I124: -9.481483514e-10 | J124: -9.384411246e-10 | K124: 0.4975808962
A125: 1150 | B125: 0.544607197 | C125: 0.544607197 | D125: -0.004173677623 | F125: -0.004161022974 | G125: 1.31637834e-05 | H125: 1.305043969e-05 | I125: -1.123365977e-09 | J125: -1.11340607e-09 | K125: 0.4212996715
A126: 1160 | B126: 0.5035400977 | C126: 0.5035400977 | D126: -0.00401558687 | F126: -0.004004153507 | G126: 1.796788946e-05 | H126: 1.784102795e-05 | I126: -1.258743976e-09 | J126: -1.248970318e-09 | K126: 0.3506646322
A127: 1170 | B127: 0.4642954596 | C127: 0.4642954596 | D127: -0.003811762664 | F127: -0.003801665184 | G127: 2.22645495e-05 | H127: 2.212811862e-05 | I127: -1.355027343e-09 | J127: -1.345825166e-09 | K127: 0.2863653312
A128: 1180 | B128: 0.4273048444 | C128: 0.4273048444 | D128: -0.003567548539 | F128: -0.003558862517 | G128: 2.601548602e-05 | H128: 2.587319835e-05 | I128: -1.414502005e-09 | J128: -1.406185264e-09 | K128: 0.2288811488
A129: 1190 | B129: 0.3929444889 | C129: 0.3929444889 | D129: -0.003288590324 | F129: -0.003281355464 | G129: 2.919727185e-05 | H129: 2.905247727e-05 | I129: -1.440709705e-09 | J129: -1.433508772e-09 | K129: 0.1784977511
A130: 1200 | B130: 0.3615330379 | C130: 0.3615330379 | D130: -0.002980692669 | F130: -0.00297491708 | G130: 3.179987938e-05 | H130: 3.165547232e-05 | I130: -1.438113672e-09 | J130: -1.432168773e-09 | K130: 0.135330145
A131: 1210 | B131: 0.3333306355 | C131: 0.3333306355 | D131: -0.002649692658 | F131: -0.002645357876 | G131: 3.382485867e-05 | H131: 3.36832219e-05 | I131: -1.411738042e-09 | J131: -1.407098521e-09 | K131: 0.0993502703
A132: 1220 | B132: 0.3085391848 | C132: 0.3085391848 | D132: -0.002301353521 | F132: -0.002298419906 | G132: 3.528329086e-05 | H132: 3.514627626e-05 | I132: -1.366804328e-09 | J132: -1.363433457e-09 | K132: 0.07041696714
A133: 1230 | B133: 0.2873035651 | C133: 0.2873035651 | D133: -0.001941279925 | F133: -0.001939692059 | G133: 3.619366463e-05 | H133: 3.606260888e-05 | I133: -1.308387132e-09 | J133: -1.306171883e-09 | K133: 0.04830618655
A134: 1240 | B134: 0.2697135862 | C134: 0.2697135862 | D134: -0.001574854865 | F134: -0.001574546614 | G134: 3.657981542e-05 | H134: 3.645558666e-05 | I134: -1.241108942e-09 | J134: -1.239873864e-09 | K134: 0.03273947447
A135: 1250 | B135: 0.2558064678 | C135: =B135-$C$7 -> 0.2558064678 | D135: =(B136-B134)/(A136-A134) -> -0.0012071968 | F135: -0.001208095751 | G135: =(F136-F134)/(A136-A134) -> 3.646905117e-05 | H135: 3.635212086e-05 | I135: -1.16889044e-09 | J135: -1.168414592e-09 | K135: 0.02340902907 | L135: Midpoint between the two peaks
A136: 1260 | B136: 0.2455696503 | C136: 0.2455696503 | D136: -0.0008431345387 | F136: -0.0008451655903 | G136: 3.589056567e-05 | H136: 3.578109888e-05 | I136: -1.094768546e-09 | J136: -1.094804311e-09 | K136: 0.01999798959
A137: 1270 | B137: 0.238943777 | C137: 0.238943777 | D137: -0.0004871964841 | F137: -0.0004902844374 | G137: 3.487421302e-05 | H137: 3.477216949e-05 | I137: -1.02078971e-09 | J137: -1.021082261e-09 | K137: 0.02219503421
A138: 1280 | B138: 0.2358257206 | C138: 0.2358257206 | D138: -0.0001436102426 | F138: -0.00014768133 | G138: 3.344968625e-05 | H138: 3.335492421e-05 | I138: -9.479810772e-10 | J138: -9.482872906e-10 | K138: 0.02970281697
A139: 1290 | B139: 0.2360715721 | C139: 0.2360715721 | D139: 0.0001836916495 | F139: 0.0001787092876 | G139: 3.164611132e-05 | H139: 3.15584865e-05 | I139: -8.763972977e-10 | J139: -8.765029883e-10 | K139: =C139-($K$4*H139)+($K$5*J139) -> 0.04224023112
A140: 1300 | B140: 0.2394995536 | C140: 0.2394995536 | D140: 0.000491064094 | F140: 0.0004852408965 | G140: 2.94920371e-05 | H140: 2.941148987e-05 | I140: -8.052362806e-10 | J140: -8.049707757e-10 | K140: 0.05953892201
A141: 1310 | B141: 0.245892854 | C141: 0.245892854 | D141: 0.0007751437484 | F141: 0.0007685500296 | G141: 2.701577395e-05 | H141: 2.694239873e-05 | I141: =(H140-2*H141+H142)/(A142-A140)^2 -> -7.330132439e-10 | J141: -7.322605069e-10 | K141: 0.08133486187
A142: 1320 | B142: 0.2550024285 | C142: 0.2550024285 | D142: 0.001032848528 | F142: 0.001025556375 | G142: 2.42460099e-05 | H142: 2.418010229e-05 | I142: -6.577792594e-10 | J142: -6.564849909e-10 | K142: 0.1073561211
A143: 1330 | B143: 0.2665498246 | C143: 0.2665498246 | D143: 0.001261384698 | F143: 0.001253470228 | G143: 2.121261539e-05 | H143: 2.115469414e-05 | I143: -5.773682007e-10 | J143: -5.755425954e-10 | K143: 0.1373082102
A144: 1340 | B144: 0.2802301225 | C144: 0.2802301225 | D144: 0.001458262987 | F144: 0.001449808683 | G144: 1.794753589e-05 | H144: 1.789833872e-05 | I144: -4.896547207e-10 | J144: -4.873708197e-10 | K144: 0.1708585098
A145: 1350 | B145: 0.2957150843 | C145: 0.2957150843 | D145: 0.001621324061 | F145: 0.001612420946 | G145: 1.44856677e-05 | H145: 1.444612141e-05 | I145: -3.928056369e-10 | J145: -3.901934679e-10 | K145: 0.2076213514
A146: 1360 | B146: 0.3126566037 | C146: 0.3126566037 | D146: 0.001748772673 | F146: 0.001739522037 | G146: 1.086561433e-05 | H146: 1.083678184e-05 | I146: -2.855078772e-10 | J146: -2.827448218e-10 | K146: 0.2471452522
A147: 1370 | B147: 0.3306905378 | C147: 0.3306905378 | D147: 0.001839218741 | F147: 0.001829733232 | G147: 7.130231002e-06 | H147: 7.113239124e-06 | I147: -1.671578961e-10 | J147: -1.644559402e-10 | K147: 0.2889036536
A148: 1380 | B148: 0.3494409785 | C148: 0.3494409785 | D148: 0.001891722773 | F148: 0.001882126657 | G148: 3.326880162e-06 | H148: 3.322833248e-06 | I148: -3.800009152e-11 | J148: -3.559079306e-11 | K148: 0.3322902722
A149: 1390 | B149: 0.3685249932 | C149: 0.3685249932 | D149: 0.001905842343 | F149: 0.001896270835 | G149: -4.926583339e-07 | H149: -4.827726643e-07 | I149: 1.007949069e-10 | J149: 1.026767657e-10 | K149: 0.3766198619
A150: 1400 | B150: 0.3875578254 | C150: 0.3875578254 | D150: 0.001881675884 | F150: 0.001872273491 | G150: -4.272654152e-06 | H150: -4.248060614e-06 | I150: 2.471173408e-10 | J150: 2.482503746e-10 | K150: 0.4211348179
A151: 1410 | B151: 0.4061585109 | C151: 0.4061585109 | D151: 0.001819899852 | F151: 0.001810817752 | G151: -7.954275819e-06 | H151: -7.914501627e-06 | I151: 3.979719101e-10 | J151: 3.981639679e-10 | K151: 0.4650176631
A152: 1420 | B152: 0.4239558224 | C152: 0.4239558224 | D152: 0.001721795421 | F152: 0.001713187974 | G152: -1.147680072e-05 | H152: -1.142175388e-05 | I152: 5.495947108e-10 | J152: 5.486969244e-10 | K152: 0.5074090568
A153: 1430 | B153: 0.4405944193 | C153: 0.4405944193 | D153: 0.001589261203 | F153: 0.001581281738 | G153: -1.477913825e-05 | H153: -1.470916824e-05 | I153: 6.97626366e-10 | J153: =(I145*$M$6+I146*$N$6+I147*$O$6+I148*$P$6+I149*$Q$6+I150*$R$6+I151*$S$6+I152*$T$6+I153*$U$6+I154*$V$6+I155*$W$6+I156*$X$6+I157*$Y$6+I158*$Z$6+I159*$AA$6+I160*$AB$6+I161*$AC$6)/SUM($M$6:$AC$6) -> 6.955445142e-10 | K153: 0.5474305826
A154: 1440 | B154: 0.4557410465 | C154: 0.4557410465 | D154: 0.001424809125 | F154: 0.001417605209 | G154: -1.780159575e-05 | H154: -1.771753206e-05 | I154: 8.373306139e-10 | J154: 8.340330798e-10 | K154: 0.5842112402
A155: 1450 | B155: 0.4690906018 | C155: 0.4690906018 | D155: 0.001231541384 | F155: 0.001225249823 | G155: -2.048779849e-05 | H155: -2.039096363e-05 | I155: 9.638447255e-10 | J155: 9.59366539e-10 | K155: 0.6169162893
A156: 1460 | B156: 0.4803718742 | C156: 0.4803718742 | D156: 0.001013107399 | F156: 0.001007849239 | G156: -2.27866618e-05 | H156: -2.267885732e-05 | I156: 1.072446091e-09 | J156: 1.066888802e-09 | K156: 0.6447769103
A157: 1470 | B157: 0.4893527498 | C157: 0.4893527498 | D157: 0.0007736407766 | F157: 0.0007695165869 | G157: -2.465430717e-05 | H157: -2.453777256e-05 | I157: 1.158818299e-09 | J157: 1.152345695e-09 | K157: 0.6671190488
A158: 1480 | B158: 0.4958446897 | C158: 0.4958446897 | D158: 0.0005176773956 | F158: 0.000514763096 | G158: -2.60558141e-05 | H158: -2.593316049e-05 | I158: 1.219300091e-09 | J158: 1.212130048e-09 | K158: 0.6833898255
A159: 1490 | B159: 0.4997062977 | C159: 0.4997062977 | D159: 0.0002500568163 | F159: 0.0002484003048 | G159: -2.696670658e-05 | H159: -2.684082838e-05 | I159: 1.251101711e-09 | J159: 1.243494709e-09 | K159: 0.6931800032
A160: 1500 | B160: 0.500845826 | C160: 0.500845826 | D160: -2.418980889e-05 | F160: -2.45710355e-05 | G160: -2.737408626e-05 | H160: -2.724805559e-05 | I160: 1.252475321e-09 | J160: 1.244720375e-09 | K160: 0.6962412086
A161: 1510 | B161: 0.4992225015 | C161: 0.4992225015 | D161: -0.0002999613405 | F161: -0.0002990814204 | G161: -2.727734324e-05 | H161: -2.715429266e-05 | I161: 1.222829147e-09 | J161: 1.215228073e-09 | K161: 0.6924969008
A162: 1520 | B162: 0.4948465992 | C162: 0.4948465992 | D162: -0.0005722131918 | F162: -0.0005701179003 | G162: -2.668839791e-05 | H162: -2.657139808e-05 | I162: 1.162778677e-09 | J162: 1.155629699e-09 | K162: 0.6820464251
A163: 1530 | B163: 0.4877782377 | C163: =B163-$C$7 -> 0.4877782377 | D163: =(B164-B162)/(A164-A162) -> -0.0008360838772 | F163: =(D155*$M$6+D156*$N$6+D157*$O$6+D158*$P$6+D159*$Q$6+D160*$R$6+D161*$S$6+D162*$T$6+D163*$U$6+D164*$V$6+D165*$W$6+D166*$X$6+D167*$Y$6+D168*$Z$6+D169*$AA$6+D170*$AB$6+D171*$AC$6)/SUM($M$6:$AC$6) -> -0.0008328493785 | G163: =(F164-F162)/(A164-A162) -> -2.563145327e-05 | H163: =(G155*$M$6+G156*$N$6+G157*$O$6+G158*$P$6+G159*$Q$6+G160*$R$6+G161*$S$6+G162*$T$6+G163*$U$6+G164*$V$6+G165*$W$6+G166*$X$6+G167*$Y$6+G168*$Z$6+G169*$AA$6+G170*$AB$6+G171*$AC$6)/SUM($M$6:$AC$6) -> -2.552339203e-05 | I163: 1.074132295e-09 | J163: 1.06771403e-09 | K163: 0.6651618851
A164: 1540 | B164: 0.4781249217 | C164: 0.4781249217 | D164: -0.001087016568 | F164: -0.001082746966 | G164: -2.414226367e-05 | H164: -2.404573306e-05 | I164: 9.598128526e-10 | J164: 9.543696762e-10 | K164: 0.6422779697
A165: 1550 | B165: 0.4660379063 | C165: 0.4660379063 | D165: -0.00132087085 | F165: -0.001315694652 | G165: -2.226695163e-05 | H165: -2.218414895e-05 | I165: 8.237207042e-10 | J165: 8.19450373e-10 | K165: 0.6139752619
A166: 1560 | B166: 0.4517075047 | C166: 0.4517075047 | D166: -0.001534020339 | F166: -0.001528085998 | G166: -2.006042886e-05 | H166: -1.999307655e-05 | I166: 6.70547231e-10 | J166: 6.6759147e-10 | K166: 0.5809579081
A167: 1570 | B167: 0.4353574996 | C167: 0.4353574996 | D167: -0.001723432466 | F167: -0.001716903229 | G167: -1.758449686e-05 | H167: -1.753378527e-05 | I167: 5.055507138e-10 | J167: 5.039892642e-10 | K167: 0.5440268192
A168: 1580 | B168: 0.4172388554 | C168: 0.4172388554 | D168: -0.001886727646 | F168: -0.001879775936 | G168: -1.490571849e-05 | H168: -1.48722737e-05 | I168: 3.343083981e-10 | J168: 3.341567711e-10 | K168: 0.5040497865
A169: 1590 | B169: 0.3976229466 | C169: 0.3976229466 | D169: -0.002022215985 | F169: -0.002015017599 | G169: -1.209316095e-05 | H169: -1.207703877e-05 | I169: 1.624595744e-10 | J169: 1.636705059e-10 | K169: 0.4619300177
A170: 1600 | B170: 0.3767945356 | C170: 0.3767945356 | D170: -0.002128910779 | F170: -0.002121639155 | G170: -9.216114677e-06 | H170: -9.216820008e-06 | I170: -4.545523485e-12 | J170: -2.077166159e-12 | K170: 0.4185746291
A171: 1610 | B171: 0.3550447311 | C171: 0.3550447311 | D171: -0.002206519077 | F171: -0.002199339892 | G171: -6.341889724e-06 | H171: -6.358419458e-06 | I171: -1.616771921e-10 | J171: -1.581065138e-10 | K171: 0.3748645642
A172: 1620 | B172: 0.3326641541 | C172: 0.3326641541 | D172: -0.002255410638 | F172: -0.002248476949 | G172: -3.533783704e-06 | H172: -3.564689784e-06 | I172: -3.045261477e-10 | J172: -3.000479749e-10 | K172: 0.3316272623
A173: 1630 | B173: 0.3099365183 | C173: 0.3099365183 | D173: -0.002276567445 | F173: -0.002270015566 | G173: -8.493020025e-07 | H173: -8.927705691e-07 | I173: -4.294624122e-10 | J173: -4.242994397e-10 | K173: 0.2896131834
A174: 1640 | B174: 0.2871328052 | C174: 0.2871328052 | D174: -0.002271516738 | F174: -0.002265462989 | G174: 1.661305433e-06 | H174: 1.607363681e-06 | I174: -5.337467865e-10 | J174: -5.281369325e-10 | K174: 0.2494770216
A175: 1650 | B175: 0.2645061836 | C175: 0.2645061836 | D175: -0.002242251037 | F175: -0.002236789458 | G175: 3.95614586e-06 | H175: 3.893999216e-06 | I175: -6.155917449e-10 | J175: -6.097755248e-10 | K175: 0.2117641444
A176: 1660 | B176: 0.2422877845 | C176: 0.2422877845 | D176: -0.00219113902 | F176: -0.002186340072 | G176: 6.002399711e-06 | H176: 5.934398053e-06 | I176: -6.74171823e-10 | J176: -6.683804913e-10 | K176: 0.1769024754
A177: 1670 | B177: 0.2206834032 | C177: 0.2206834032 | D177: -0.002120831212 | F177: -0.002116741464 | G177: 7.776646931e-06 | H177: 7.705128161e-06 | I177: -7.095865744e-10 | J177: -7.040316811e-10 | K177: 0.145199743
A178: 1680 | B178: 0.1998711602 | C178: 0.1998711602 | D178: -0.00203416441 | F178: -0.002030807134 | G178: 9.264819073e-06 | H178: 9.19202364e-06 | I178: -7.227817525e-10 | J178: -7.176466169e-10 | K178: 0.1168457411
A179: 1690 | B179: 0.180000115 | C179: 0.180000115 | D179: -0.001934068501 | F179: -0.001931445082 | G179: 1.046180948e-05 | H179: 1.038980642e-05 | I179: -7.154363882e-10 | J179: -7.108698271e-10 | K179: 0.09191902241
A180: 1700 | B180: 0.1611897902 | C180: 0.1611897902 | D180: -0.001823478915 | F180: -0.001821570944 | G180: 1.137078763e-05 | H180: 1.130141464e-05 | I180: -6.898247794e-10 | J180: -6.859372533e-10 | K180: 0.07039726723
A181: 1710 | B181: 0.1435305367 | C181: 0.1435305367 | D181: -0.001705257443 | F181: -0.00170402933 | G181: 1.200227381e-05 | H181: 1.193709295e-05 | I181: -6.486630663e-10 | J181: -6.455252369e-10 | K181: 0.0521704617
A182: 1720 | B182: 0.1270846413 | C182: 0.1270846413 | D182: -0.001582123516 | F182: -0.001581525468 | G182: 1.237303654e-05 | H182: 1.231330603e-05 | I182: -5.949500355e-10 | J182: -5.925935758e-10 | K182: 0.03705596354
A183: 1730 | B183: 0.1118880663 | C183: 0.1118880663 | D183: -0.001456597396 | F183: -0.001456568599 | G183: 1.250487724e-05 | H183: 1.24515391e-05 | I183: -5.31811166e-10 | J183: -5.302315382e-10 | K183: 0.02481454258
A184: 1740 | B184: 0.09795269342 | C184: 0.09795269342 | D184: -0.001330956087 | F184: -0.001331427923 | G184: 1.24233654e-05 | H184: 1.237704771e-05 | I184: -4.623537852e-10 | J184: -4.615146073e-10 | K184: 0.01516654047
A185: 1750 | B185: 0.0852689446 | C185: 0.0852689446 | D185: -0.001207202121 | F185: -0.001208101291 | G185: 1.21565828e-05 | H185: 1.21176148e-05 | I185: -3.895396927e-10 | J185: -3.893782594e-10 | K185: 0.007807395043
A186: 1760 | B186: 0.073808651 | C186: 0.073808651 | D186: -0.001087044834 | F186: -0.001088296267 | G186: 1.173392819e-05 | H186: 1.170236601e-05 | I186: -3.160798671e-10 | J186: -3.16513368e-10 | K186: 0.002421905159
A187: 1770 | B187: 0.06352804792 | C187: 0.06352804792 | D187: -0.0009718932792 | F187: -0.0009734227269 | G187: 1.118502485e-05 | H187: 1.116068527e-05 | I187: -2.44354045e-10 | J187: -2.452860365e-10 | K187: -0.001303237826
A188: 1780 | B188: 0.05437078541 | C188: 0.05437078541 | D188: -0.0008628595154 | F188: -0.00086459577 | G188: 1.05387632e-05 | H188: 1.052126292e-05 | I188: -1.763561888e-10 | J188: -1.776829169e-10 | K188: -0.003668969964
A189: 1790 | B189: 0.04627085761 | C189: 0.04627085761 | D189: -0.0007607707701 | F189: -0.0007626474629 | G189: 9.822500425e-06 | H189: 9.811298091e-06 | I189: -1.13665245e-10 | J189: -1.152814794e-10 | K189: -0.004955591224
A190: 1800 | B190: 0.03915537001 | C190: 0.03915537001 | D190: -0.0006661887959 | F190: -0.0006681457615 | G190: 9.061428311e-06 | H190: 9.055867165e-06 | I190: -5.743923885e-11 | J190: -5.92433547e-11 | K190: -0.005416744423
A191: 1810 | B191: 0.03294708169 | C191: 0.03294708169 | D191: -0.0005794346842 | F191: -0.0005814188967 | G191: 8.278111612e-06 | H191: 8.277460543e-06 | I191: -8.429696052e-12 | J191: -1.032782479e-11 | K191: -0.005275542585
A192: 1820 | B192: 0.02756667633 | C192: 0.02756667633 | D192: -0.0005006174223 | F192: -0.0005025835293 | G192: 7.492190637e-06 | H192: 7.495682042e-06 | I192: 3.298733179e-11 | J192: 3.107817798e-11 | K192: -0.004722655118
A193: 1830 | B193: 0.02293473324 | C193: 0.02293473324 | D193: -0.0004296645883 | F193: -0.0004315750839 | G193: 6.720235285e-06 | H193: 6.727098475e-06 | I193: 6.676774438e-11 | J193: 6.491759229e-11 | K193: -0.003916094019
A194: 1840 | B194: 0.01897338456 | C194: 0.01897338456 | D194: -0.0003663537368 | F194: -0.0003681788236 | G194: 5.975732693e-06 | H194: 5.985222005e-06 | I194: 9.314754861e-11 | J194: 9.141237889e-11 | K194: -0.002982398449
A195: 1850 | B195: 0.01560765851 | C195: 0.01560765851 | D195: -0.0003103432325 | F195: -0.0003120604301 | G195: 5.269187348e-06 | H195: 5.280604554e-06 | I195: 1.12586674e-10 | J195: 1.110082294e-10 | K195: -0.002018897864
A196: 1860 | B196: 0.01276651991 | C196: 0.01276651991 | D196: -0.0002612015184 | F196: -0.0002627950766 | G196: 4.608310828e-06 | H196: 4.621021774e-06 | I196: 1.257120209e-10 | J196: 1.243183681e-10 | K196: -0.001096737166
A197: 1870 | B197: 0.01038362814 | C197: 0.01038362814 | D197: -0.0002184340371 | F197: -0.0002198942135 | G197: 3.99827809e-06 | H197: 4.011723801e-06 | I197: 1.332627568e-10 | J197: 1.320694413e-10 | K197: -0.000264368171
A198: 1880 | B198: 0.008397839169 | C198: 0.008397839169 | D198: -0.0001815072613 | F198: -0.0001828295148 | G198: 3.442028196e-06 | H198: 3.455730931e-06 | I198: 1.360402306e-10 | J198: 1.350518538e-10 | K198: 0.0004487545658
A199: 1890 | B199: 0.006753482913 | C199: 0.006753482913 | D199: -0.0001498694995 | F199: -0.0001510536496 | G199: 2.940589244e-06 | H199: 2.954154154e-06 | I199: 1.348641971e-10 | J199: 1.340762535e-10 | K199: 0.001028493315
A200: 1900 | B200: 0.00540044918 | C200: 0.00540044918 | D200: -0.0001229683382 | F200: -0.0001240177299 | G200: 2.493409932e-06 | H200: 2.506523055e-06 | I200: 1.305363891e-10 | J200: 1.299372122e-10 | K200: 0.001472535475
... 4300 more rows
